[Event "Late-Titled-Tuesday-Blitz-April-23-2024"]
[Site "Chess.com"]
[Date "2024.04.23"]
[Round "6"]
[White "MetiForce"]
[Black "BogdanDeac"]
[Result "1-0"]
[WhiteElo "2944"]
[BlackElo "3043"]
[TimeControl "180+1"]
[EndTime "15:08:39 PDT"]
[Termination "MetiForce won by resignation"]

1. d4 {[%clk 0:02:58.1]} 1... Nf6 {[%clk 0:02:59.3]} 2. c4 {[%clk 0:02:58.2]}
2... e6 {[%clk 0:02:59.6]} 3. Nc3 {[%clk 0:02:58.5]} 3... Bb4 {[%clk 0:02:59.1]}
4. e3 {[%clk 0:02:58.9]} 4... O-O {[%clk 0:02:58.7]} 5. Bd3 {[%clk 0:02:58.7]}
5... d5 {[%clk 0:02:58.9]} 6. cxd5 {[%clk 0:02:59.6]} 6... exd5 {[%clk
0:02:58.8]} 7. a3 {[%clk 0:03:00.2]} 7... Bd6 {[%clk 0:02:59]} 8. Qc2 {[%clk
0:03:00.7]} 8... c6 {[%clk 0:02:57.1]} 9. Nge2 {[%clk 0:03:00.7]} 9... Re8
{[%clk 0:02:57]} 10. Bd2 {[%clk 0:03:01.4]} 10... Nbd7 {[%clk 0:02:57.3]} 11. f3
{[%clk 0:03:01.1]} 11... c5 {[%clk 0:02:57.4]} 12. h4 {[%clk 0:03:01.5]} 12...
h5 {[%clk 0:02:54.7]} 13. O-O-O {[%clk 0:02:58.1]} 13... cxd4 {[%clk 0:02:54.5]}
14. exd4 {[%clk 0:02:56.9]} 14... Nb6 {[%clk 0:02:54.3]} 15. Bg5 {[%clk
0:02:46.4]} 15... Bd7 {[%clk 0:02:51.7]} 16. g4 {[%clk 0:02:38.4]} 16... Rc8
{[%clk 0:01:16.7]} 17. Rdg1 {[%clk 0:02:26]} 17... hxg4 {[%clk 0:01:02.7]} 18.
h5 {[%clk 0:01:35.3]} 18... Na4 {[%clk 0:00:31.1]} 19. h6 {[%clk 0:01:27.7]}
19... Rxe2 {[%clk 0:00:29.2]} 20. Bxe2 {[%clk 0:01:08.1]} 20... Nxc3 {[%clk
0:00:15.6]} 21. bxc3 {[%clk 0:01:00]} 21... Bxa3+ {[%clk 0:00:15.5]} 22. Kd2
{[%clk 0:00:45.9]} 22... Ne4+ {[%clk 0:00:11.7]} 23. Qxe4 {[%clk 0:00:36.2]}
23... Qxg5+ {[%clk 0:00:11.3]} 24. f4 {[%clk 0:00:37]} 24... dxe4 {[%clk
0:00:08.8]} 25. fxg5 {[%clk 0:00:37.1]} 25... Be7 {[%clk 0:00:08.9]} 26. Bxg4
{[%clk 0:00:33]} 26... Bxg5+ {[%clk 0:00:05.1]} 27. Kc2 {[%clk 0:00:29.5]} 27...
Bxg4 {[%clk 0:00:03.5]} 28. Rxg4 {[%clk 0:00:29.5]} 28... f6 {[%clk 0:00:04]}
29. hxg7 {[%clk 0:00:25.2]} 29... Kxg7 {[%clk 0:00:04.1]} 30. Rxe4 {[%clk
0:00:25.9]} 30... b5 {[%clk 0:00:04.7]} 31. Kd3 {[%clk 0:00:15.6]} 31... a5
{[%clk 0:00:04.7]} 32. Re7+ {[%clk 0:00:15.1]} 32... Kg6 {[%clk 0:00:04.4]} 33.
Rb7 {[%clk 0:00:16]} 33... b4 {[%clk 0:00:04.7]} 34. c4 {[%clk 0:00:13.5]} 34...
f5 {[%clk 0:00:05.2]} 35. c5 {[%clk 0:00:11.8]} 35... f4 {[%clk 0:00:05.2]} 36.
Rb5 {[%clk 0:00:08.3]} 36... f3 {[%clk 0:00:05.5]} 37. Rf1 {[%clk 0:00:08.2]}
37... Ra8 {[%clk 0:00:04.2]} 38. c6 {[%clk 0:00:05.4]} 38... a4 {[%clk
0:00:04.5]} 39. Rxb4 {[%clk 0:00:05.4]} 39... a3 {[%clk 0:00:04.9]} 40. Rbb1
{[%clk 0:00:05.2]} 40... a2 {[%clk 0:00:04.7]} 41. Ra1 {[%clk 0:00:05.9]} 41...
Kf5 {[%clk 0:00:05.2]} 42. Rxf3+ {[%clk 0:00:06.1]} 42... Ke6 {[%clk 0:00:05.9]}
43. Rf2 {[%clk 0:00:06.4]} 43... Kd5 {[%clk 0:00:05.1]} 44. Rfxa2 {[%clk
0:00:06.7]} 44... Rxa2 {[%clk 0:00:05.2]} 45. Rxa2 {[%clk 0:00:07.6]} 45... Kxc6
{[%clk 0:00:05.9]} 46. Ra6+ {[%clk 0:00:08.3]} 1-0

[Event "Late-Titled-Tuesday-Blitz-April-23-2024"]
[Site "Chess.com"]
[Date "2024.04.23"]
[Round "6"]
[White "1g60-1"]
[Black "VD_coach"]
[Result "1-0"]
[WhiteElo "2449"]
[BlackElo "2588"]
[TimeControl "180+1"]
[EndTime "15:08:41 PDT"]
[Termination "1g60-1 won by resignation"]

1. Nf3 {[%clk 0:03:00.9]} 1... Nf6 {[%clk 0:02:59.4]} 2. e3 {[%clk 0:03:01.5]}
2... g6 {[%clk 0:02:58.3]} 3. c4 {[%clk 0:03:02]} 3... Bg7 {[%clk 0:02:44.9]} 4.
Nc3 {[%clk 0:03:02.2]} 4... O-O {[%clk 0:02:45.8]} 5. d4 {[%clk 0:03:01.1]} 5...
d6 {[%clk 0:02:46]} 6. h3 {[%clk 0:03:00.9]} 6... Nbd7 {[%clk 0:02:46.3]} 7. Be2
{[%clk 0:02:59.7]} 7... e5 {[%clk 0:02:46.4]} 8. O-O {[%clk 0:03:00.2]} 8... Re8
{[%clk 0:02:35.1]} 9. b3 {[%clk 0:02:54.5]} 9... exd4 {[%clk 0:02:31.9]} 10.
exd4 {[%clk 0:02:52.3]} 10... Nf8 {[%clk 0:02:31.3]} 11. Bg5 {[%clk 0:02:45.5]}
11... h6 {[%clk 0:02:30.9]} 12. Be3 {[%clk 0:02:45.6]} 12... Ne4 {[%clk
0:02:24]} 13. Nxe4 {[%clk 0:02:41.2]} 13... Rxe4 {[%clk 0:02:24.9]} 14. Bd3
{[%clk 0:02:40.2]} 14... Re8 {[%clk 0:02:15.9]} 15. Qd2 {[%clk 0:02:38.4]} 15...
Kh7 {[%clk 0:02:07.5]} 16. Rac1 {[%clk 0:02:38.4]} 16... Qf6 {[%clk 0:01:57.9]}
17. Nh2 {[%clk 0:02:25.2]} 17... Bf5 {[%clk 0:01:48.8]} 18. Bxf5 {[%clk
0:02:20.4]} 18... Qxf5 {[%clk 0:01:49.7]} 19. Nf3 {[%clk 0:02:16.6]} 19... Re7
{[%clk 0:01:40.1]} 20. c5 {[%clk 0:02:10.2]} 20... Rae8 {[%clk 0:01:34.5]} 21.
c6 {[%clk 0:02:04.4]} 21... b6 {[%clk 0:01:24.3]} 22. d5 {[%clk 0:01:58.4]}
22... g5 {[%clk 0:01:20.5]} 23. Rfd1 {[%clk 0:01:47.3]} 23... Ng6 {[%clk
0:01:13.8]} 24. Rc4 {[%clk 0:01:12.4]} 24... Re4 {[%clk 0:00:59.5]} 25. Qc2
{[%clk 0:01:03.4]} 25... g4 {[%clk 0:00:25.2]} 26. Nd2 {[%clk 0:00:40.3]} 26...
R4e5 {[%clk 0:00:25.3]} 27. Qxf5 {[%clk 0:00:40.2]} 27... Rxf5 {[%clk
0:00:25.6]} 28. Nf1 {[%clk 0:00:33.3]} 28... gxh3 {[%clk 0:00:24.6]} 29. gxh3
{[%clk 0:00:34.2]} 29... Ree5 {[%clk 0:00:23.5]} 30. Rcd4 {[%clk 0:00:28.6]}
30... Ne7 {[%clk 0:00:21.1]} 31. Ng3 {[%clk 0:00:27.4]} 31... Rf6 {[%clk
0:00:16]} 32. Bf4 {[%clk 0:00:24.4]} 32... Rxd5 {[%clk 0:00:13.3]} 33. Rxd5
{[%clk 0:00:16.1]} 33... Nxd5 {[%clk 0:00:14.2]} 34. Bxh6 {[%clk 0:00:11]} 34...
Rxh6 {[%clk 0:00:06.9]} 35. Rxd5 {[%clk 0:00:11.1]} 35... Rh4 {[%clk 0:00:07.2]}
36. Rh5+ {[%clk 0:00:10.5]} 36... Rxh5 {[%clk 0:00:06.9]} 37. Nxh5 {[%clk
0:00:11.4]} 37... Be5 {[%clk 0:00:07.2]} 38. f4 {[%clk 0:00:10.1]} 38... Bd4+
{[%clk 0:00:07.2]} 39. Kg2 {[%clk 0:00:10.6]} 39... Kg6 {[%clk 0:00:07.8]} 40.
Ng3 {[%clk 0:00:11]} 40... Kf6 {[%clk 0:00:07.6]} 41. Kf3 {[%clk 0:00:11.4]}
41... Ke6 {[%clk 0:00:08]} 42. Ke4 {[%clk 0:00:11.9]} 42... Bf2 {[%clk
0:00:07.6]} 43. f5+ {[%clk 0:00:10.4]} 43... Ke7 {[%clk 0:00:06.9]} 44. Ne2
{[%clk 0:00:10.2]} 44... Kf6 {[%clk 0:00:05.8]} 45. Nc3 {[%clk 0:00:09.4]} 45...
Bc5 {[%clk 0:00:05.4]} 46. Nd5+ {[%clk 0:00:09.6]} 46... Kg5 {[%clk 0:00:04]}
47. Nxc7 {[%clk 0:00:09.7]} 47... d5+ {[%clk 0:00:04.9]} 48. Kxd5 {[%clk
0:00:09.2]} 48... Kxf5 {[%clk 0:00:05.4]} 49. Nb5 {[%clk 0:00:08.9]} 49... Bd6
{[%clk 0:00:05]} 50. Kxd6 {[%clk 0:00:09]} 1-0

[Event "Late-Titled-Tuesday-Blitz-April-23-2024"]
[Site "Chess.com"]
[Date "2024.04.23"]
[Round "6"]
[White "AsaHoffmann"]
[Black "Balla_Tamas"]
[Result "0-1"]
[WhiteElo "2373"]
[BlackElo "2543"]
[TimeControl "180+1"]
[EndTime "15:08:42 PDT"]
[Termination "Balla_Tamas won by resignation"]

1. d4 {[%clk 0:02:59.3]} 1... d5 {[%clk 0:02:59.9]} 2. Bg5 {[%clk 0:02:54.1]}
2... g6 {[%clk 0:02:49.2]} 3. Nc3 {[%clk 0:02:50.9]} 3... Bg7 {[%clk 0:02:49.1]}
4. Qd2 {[%clk 0:02:50.6]} 4... Nf6 {[%clk 0:02:48.5]} 5. f3 {[%clk 0:02:50]}
5... c5 {[%clk 0:02:35.7]} 6. e3 {[%clk 0:02:46.2]} 6... Nc6 {[%clk 0:02:35.4]}
7. O-O-O {[%clk 0:02:45.2]} 7... cxd4 {[%clk 0:02:20.6]} 8. exd4 {[%clk
0:02:44.5]} 8... a6 {[%clk 0:02:20.4]} 9. Nge2 {[%clk 0:02:42]} 9... h6 {[%clk
0:02:18.9]} 10. Be3 {[%clk 0:02:40.9]} 10... Bd7 {[%clk 0:02:15.6]} 11. Nf4
{[%clk 0:02:36.3]} 11... Qa5 {[%clk 0:02:07.6]} 12. Kb1 {[%clk 0:02:34.2]} 12...
Rc8 {[%clk 0:02:07.4]} 13. a3 {[%clk 0:02:31.3]} 13... h5 {[%clk 0:02:00.6]} 14.
Ncxd5 {[%clk 0:02:20.5]} 14... Nxd5 {[%clk 0:01:47.2]} 15. Qxa5 {[%clk 0:02:19]}
15... Nxe3 {[%clk 0:01:36]} 16. Qe1 {[%clk 0:02:15.9]} 16... Nxd1 {[%clk
0:01:35.6]} 17. Qxd1 {[%clk 0:02:16]} 17... O-O {[%clk 0:01:35.7]} 18. c3 {[%clk
0:02:13.3]} 18... Bf5+ {[%clk 0:01:34.6]} 19. Bd3 {[%clk 0:02:12.7]} 19... Bd7
{[%clk 0:01:31.3]} 20. Re1 {[%clk 0:02:11.5]} 20... Rfd8 {[%clk 0:01:29.6]} 21.
Nd5 {[%clk 0:02:09.5]} 21... Be6 {[%clk 0:01:17.9]} 22. Nf4 {[%clk 0:02:01.6]}
22... Bd7 {[%clk 0:01:12.4]} 23. h4 {[%clk 0:01:54.7]} 23... e5 {[%clk
0:01:12.3]} 24. dxe5 {[%clk 0:01:48.7]} 24... Nxe5 {[%clk 0:01:12.4]} 25. Bc2
{[%clk 0:01:45.4]} 25... Nc4 {[%clk 0:01:07.1]} 26. Bb3 {[%clk 0:01:29.9]} 26...
Bf5+ {[%clk 0:01:05.3]} 27. Ka2 {[%clk 0:01:03.8]} 27... Rxd1 {[%clk 0:01:03.7]}
28. Rxd1 {[%clk 0:01:03.7]} 28... b5 {[%clk 0:00:53]} 29. Nd5 {[%clk 0:01:02.6]}
29... Kf8 {[%clk 0:00:43.4]} 30. Nf4 {[%clk 0:00:47.1]} 30... Be5 {[%clk
0:00:37.5]} 31. Nd3 {[%clk 0:00:45.1]} 31... Bxd3 {[%clk 0:00:34.9]} 32. Rxd3
{[%clk 0:00:44.5]} 32... Ke7 {[%clk 0:00:33.9]} 33. g4 {[%clk 0:00:43.1]} 33...
hxg4 {[%clk 0:00:33.5]} 34. fxg4 {[%clk 0:00:43]} 34... Kf6 {[%clk 0:00:31]} 35.
h5 {[%clk 0:00:42.2]} 35... gxh5 {[%clk 0:00:30.4]} 36. gxh5 {[%clk 0:00:42.3]}
36... Kg5 {[%clk 0:00:30.7]} 37. Rh3 {[%clk 0:00:40.7]} 37... f6 {[%clk
0:00:30.2]} 38. h6 {[%clk 0:00:40.4]} 38... Rh8 {[%clk 0:00:30.3]} 39. h7 {[%clk
0:00:40.3]} 39... Kg6 {[%clk 0:00:30.8]} 40. Bxc4 {[%clk 0:00:36.9]} 40... bxc4
{[%clk 0:00:30.4]} 41. Rh4 {[%clk 0:00:37.2]} 41... Rxh7 {[%clk 0:00:30.3]} 42.
Rxc4 {[%clk 0:00:36.9]} 42... f5 {[%clk 0:00:30.7]} 43. Rc6+ {[%clk 0:00:36.3]}
43... Bf6 {[%clk 0:00:31.2]} 44. Rxa6 {[%clk 0:00:35.6]} 44... f4 {[%clk
0:00:31.8]} 45. Ra4 {[%clk 0:00:35.4]} 45... f3 {[%clk 0:00:28.6]} 46. Rf4
{[%clk 0:00:34.5]} 46... Rh3 {[%clk 0:00:29.1]} 47. c4 {[%clk 0:00:28]} 47...
Kg5 {[%clk 0:00:28.9]} 48. Rxf3 {[%clk 0:00:20.9]} 48... Rxf3 {[%clk 0:00:28.6]}
49. b4 {[%clk 0:00:20.7]} 49... Rc3 {[%clk 0:00:26.7]} 50. c5 {[%clk 0:00:20.1]}
50... Bd4 {[%clk 0:00:26.5]} 51. a4 {[%clk 0:00:20]} 51... Kf5 {[%clk
0:00:26.6]} 52. a5 {[%clk 0:00:20]} 52... Bxc5 {[%clk 0:00:26.2]} 53. bxc5
{[%clk 0:00:19.5]} 53... Rxc5 {[%clk 0:00:26.4]} 54. Kb3 {[%clk 0:00:18.8]}
54... Rxa5 {[%clk 0:00:26.4]} 0-1

[Event "Late-Titled-Tuesday-Blitz-April-23-2024"]
[Site "Chess.com"]
[Date "2024.04.23"]
[Round "6"]
[White "ansko1999"]
[Black "IndianSchoolOfSuffering"]
[Result "1-0"]
[WhiteElo "2593"]
[BlackElo "2405"]
[TimeControl "180+1"]
[EndTime "15:08:43 PDT"]
[Termination "ansko1999 won by resignation"]

1. c4 {[%clk 0:03:00.9]} 1... c5 {[%clk 0:02:52.9]} 2. Nf3 {[%clk 0:03:00.5]}
2... Nc6 {[%clk 0:02:48.6]} 3. Nc3 {[%clk 0:03:00.4]} 3... g6 {[%clk 0:02:49.2]}
4. e3 {[%clk 0:03:00.2]} 4... Nf6 {[%clk 0:02:48.3]} 5. d4 {[%clk 0:03:00.4]}
5... cxd4 {[%clk 0:02:48.8]} 6. exd4 {[%clk 0:03:01]} 6... d5 {[%clk 0:02:49]}
7. cxd5 {[%clk 0:02:58.8]} 7... Nxd5 {[%clk 0:02:49]} 8. Bc4 {[%clk 0:02:58.8]}
8... Nxc3 {[%clk 0:02:48.6]} 9. Qb3 {[%clk 0:02:59]} 9... Nd5 {[%clk 0:02:45.3]}
10. Bxd5 {[%clk 0:02:58.7]} 10... e6 {[%clk 0:02:44]} 11. Bxc6+ {[%clk
0:02:55.2]} 11... bxc6 {[%clk 0:02:44.9]} 12. Bg5 {[%clk 0:02:53.3]} 12... f6
{[%clk 0:02:39.5]} 13. Bf4 {[%clk 0:02:49.4]} 13... Qd5 {[%clk 0:02:39]} 14. O-O
{[%clk 0:02:30.7]} 14... Be7 {[%clk 0:02:31.7]} 15. Rfe1 {[%clk 0:02:23.7]}
15... g5 {[%clk 0:02:28.9]} 16. Bg3 {[%clk 0:02:12]} 16... h5 {[%clk 0:02:27.8]}
17. h3 {[%clk 0:02:04.3]} 17... a5 {[%clk 0:02:24.5]} 18. Rac1 {[%clk
0:01:52.6]} 18... Qxb3 {[%clk 0:02:19.5]} 19. axb3 {[%clk 0:01:53.5]} 19... Bd7
{[%clk 0:02:18.1]} 20. Nd2 {[%clk 0:01:47.2]} 20... Kf7 {[%clk 0:02:13.3]} 21.
Nc4 {[%clk 0:01:40.8]} 21... Bb4 {[%clk 0:02:05]} 22. Re2 {[%clk 0:01:37.1]}
22... Ra7 {[%clk 0:01:56.8]} 23. Bd6 {[%clk 0:01:29.6]} 23... Rb7 {[%clk
0:01:43.5]} 24. Bxb4 {[%clk 0:01:26.2]} 24... Rxb4 {[%clk 0:01:43.3]} 25. Nxa5
{[%clk 0:01:24.2]} 25... Rxd4 {[%clk 0:01:15.4]} 26. Nxc6 {[%clk 0:01:17]} 26...
Bxc6 {[%clk 0:01:13.5]} 27. Rxc6 {[%clk 0:01:17.9]} 27... e5 {[%clk 0:01:11.5]}
28. g3 {[%clk 0:00:59.1]} 28... h4 {[%clk 0:01:08.6]} 29. g4 {[%clk 0:00:57.9]}
29... Rd3 {[%clk 0:01:06.5]} 30. Rc3 {[%clk 0:00:57.5]} 30... Rhd8 {[%clk
0:01:02.7]} 31. Kg2 {[%clk 0:00:53.2]} 31... Rd2 {[%clk 0:00:57.1]} 32. Kf1
{[%clk 0:00:35.4]} 32... Rd1+ {[%clk 0:00:56]} 33. Re1 {[%clk 0:00:34.7]} 33...
R1d2 {[%clk 0:00:52.3]} 34. Rb1 {[%clk 0:00:32.3]} 34... Rb8 {[%clk 0:00:42.4]}
35. Ke1 {[%clk 0:00:31.1]} 35... Rd4 {[%clk 0:00:42.4]} 36. Ra1 {[%clk
0:00:28.7]} 36... Rb7 {[%clk 0:00:35.7]} 37. Ra6 {[%clk 0:00:27.4]} 37... Rf4
{[%clk 0:00:31.2]} 38. Ke2 {[%clk 0:00:25.2]} 38... Rfb4 {[%clk 0:00:22.9]} 39.
Rf3 {[%clk 0:00:23.3]} 39... Rf4 {[%clk 0:00:21]} 40. Rxf4 {[%clk 0:00:21.7]}
40... gxf4 {[%clk 0:00:21]} 41. Ra3 {[%clk 0:00:21.8]} 41... Ke6 {[%clk
0:00:20.5]} 42. Kd3 {[%clk 0:00:20.8]} 42... Rd7+ {[%clk 0:00:20.3]} 43. Kc3
{[%clk 0:00:20.8]} 43... Rd1 {[%clk 0:00:19.8]} 44. b4 {[%clk 0:00:20.3]} 44...
e4 {[%clk 0:00:19.8]} 45. Kc4 {[%clk 0:00:17.8]} 45... Ke5 {[%clk 0:00:18]} 46.
Ra5+ {[%clk 0:00:16.8]} 46... Ke6 {[%clk 0:00:17.8]} 47. Rf5 {[%clk 0:00:15.5]}
47... e3 {[%clk 0:00:16.8]} 48. Rxf4 {[%clk 0:00:16.1]} 48... exf2 {[%clk
0:00:11.5]} 49. Rxf2 {[%clk 0:00:16.3]} 49... Rh1 {[%clk 0:00:12.1]} 50. Rf3
{[%clk 0:00:16.6]} 50... Rh2 {[%clk 0:00:11.7]} 51. b3 {[%clk 0:00:16.8]} 51...
Ke5 {[%clk 0:00:12]} 52. b5 {[%clk 0:00:16.2]} 52... Rc2+ {[%clk 0:00:12.5]} 53.
Rc3 {[%clk 0:00:15.5]} 53... Rxc3+ {[%clk 0:00:12.4]} 54. Kxc3 {[%clk
0:00:16.4]} 54... f5 {[%clk 0:00:12.1]} 55. b6 {[%clk 0:00:17.3]} 55... fxg4
{[%clk 0:00:12.7]} 56. b7 {[%clk 0:00:17.1]} 56... gxh3 {[%clk 0:00:12.1]} 57.
b8=Q+ {[%clk 0:00:18]} 57... Kf5 {[%clk 0:00:11.9]} 58. Qh2 {[%clk 0:00:18.7]}
1-0

[Event "Late-Titled-Tuesday-Blitz-April-23-2024"]
[Site "Chess.com"]
[Date "2024.04.23"]
[Round "6"]
[White "KNVB"]
[Black "Bugcrusher"]
[Result "0-1"]
[WhiteElo "2689"]
[BlackElo "2526"]
[TimeControl "180+1"]
[EndTime "15:08:47 PDT"]
[Termination "Bugcrusher won on time"]

1. e4 {[%clk 0:03:00.9]} 1... e6 {[%clk 0:02:57.6]} 2. Nf3 {[%clk 0:03:00.3]}
2... d5 {[%clk 0:02:56.8]} 3. c3 {[%clk 0:03:01.2]} 3... dxe4 {[%clk 0:02:56.4]}
4. Qa4+ {[%clk 0:03:01.2]} 4... Nc6 {[%clk 0:02:52.8]} 5. Qxe4 {[%clk
0:03:02.1]} 5... Nf6 {[%clk 0:02:52.9]} 6. Qc2 {[%clk 0:03:02.6]} 6... e5 {[%clk
0:02:49.5]} 7. d3 {[%clk 0:03:03.2]} 7... a5 {[%clk 0:02:44.2]} 8. a4 {[%clk
0:03:02.2]} 8... Bc5 {[%clk 0:02:43.8]} 9. Be2 {[%clk 0:03:01.4]} 9... O-O
{[%clk 0:02:43.2]} 10. O-O {[%clk 0:03:02.1]} 10... Bf5 {[%clk 0:02:35.4]} 11.
Nbd2 {[%clk 0:03:02.2]} 11... Qd7 {[%clk 0:02:32.6]} 12. Ne4 {[%clk 0:03:02.1]}
12... Nxe4 {[%clk 0:02:28.9]} 13. dxe4 {[%clk 0:03:03]} 13... Bg4 {[%clk
0:02:29.1]} 14. Rd1 {[%clk 0:02:29.8]} 14... Qe7 {[%clk 0:02:27.5]} 15. Bg5
{[%clk 0:02:30.4]} 15... f6 {[%clk 0:02:24.2]} 16. Qb3+ {[%clk 0:02:30.4]} 16...
Kh8 {[%clk 0:02:23.7]} 17. Bh4 {[%clk 0:02:27.6]} 17... Bb6 {[%clk 0:02:21.1]}
18. Rd2 {[%clk 0:02:22.1]} 18... Rfd8 {[%clk 0:02:18.7]} 19. Rad1 {[%clk
0:02:22.4]} 19... Rxd2 {[%clk 0:02:16.4]} 20. Rxd2 {[%clk 0:02:23.3]} 20... Rd8
{[%clk 0:02:16.5]} 21. Qd1 {[%clk 0:02:24]} 21... Rxd2 {[%clk 0:02:15]} 22. Nxd2
{[%clk 0:02:24.9]} 22... Bxe2 {[%clk 0:02:11.9]} 23. Qxe2 {[%clk 0:02:25.8]}
23... g5 {[%clk 0:02:04.1]} 24. Bg3 {[%clk 0:02:25.1]} 24... Qe6 {[%clk
0:01:56.8]} 25. h4 {[%clk 0:01:38.4]} 25... h6 {[%clk 0:01:54.8]} 26. Qc4 {[%clk
0:00:38.3]} 26... Qxc4 {[%clk 0:01:49.4]} 27. Nxc4 {[%clk 0:00:39.2]} 27... Bc5
{[%clk 0:01:49.9]} 28. h5 {[%clk 0:00:19.1]} 28... b6 {[%clk 0:01:45.6]} 29. Kf1
{[%clk 0:00:19.4]} 29... Kg8 {[%clk 0:01:45.2]} 30. f3 {[%clk 0:00:19.6]} 30...
Kf7 {[%clk 0:01:45.1]} 31. Be1 {[%clk 0:00:19.7]} 31... Ke6 {[%clk 0:01:43]} 32.
Bd2 {[%clk 0:00:11.6]} 32... f5 {[%clk 0:01:41.6]} 33. exf5+ {[%clk 0:00:10.9]}
33... Kxf5 {[%clk 0:01:41.7]} 34. g4+ {[%clk 0:00:11.4]} 34... Ke6 {[%clk
0:01:39.5]} 35. Ke2 {[%clk 0:00:12]} 35... Kd5 {[%clk 0:01:38.8]} 36. Kd3 {[%clk
0:00:12.4]} 36... Nd8 {[%clk 0:01:32.3]} 37. Be1 {[%clk 0:00:05]} 37... Ne6
{[%clk 0:01:30.9]} 38. Bg3 {[%clk 0:00:05.6]} 38... Bd6 {[%clk 0:01:28.1]} 39.
Ne3+ {[%clk 0:00:05.2]} 39... Kc6 {[%clk 0:01:24.8]} 40. Kc2 {[%clk 0:00:02.2]}
40... Ng7 {[%clk 0:01:10.3]} 41. Be1 {[%clk 0:00:01.8]} 41... Bc5 {[%clk
0:01:08.4]} 42. Nc4 {[%clk 0:00:02.3]} 42... Kd5 {[%clk 0:01:07.1]} 43. Nd2
{[%clk 0:00:02.9]} 43... Ne6 {[%clk 0:01:05.1]} 44. Ne4 {[%clk 0:00:02.8]} 44...
Be7 {[%clk 0:01:01]} 45. Kd3 {[%clk 0:00:01.9]} 45... Nf4+ {[%clk 0:00:55.3]}
46. Kc2 {[%clk 0:00:02.3]} 46... Ne6 {[%clk 0:00:55.2]} 47. Bd2 {[%clk
0:00:02.4]} 47... Nc5 {[%clk 0:00:45.6]} 48. Nxc5 {[%clk 0:00:02.7]} 48... Bxc5
{[%clk 0:00:45.3]} 49. Kd3 {[%clk 0:00:02.8]} 49... Bg1 {[%clk 0:00:41.5]} 50.
b3 {[%clk 0:00:02.7]} 50... c6 {[%clk 0:00:39.1]} 51. b4 {[%clk 0:00:02.4]}
51... axb4 {[%clk 0:00:35.6]} 52. cxb4 {[%clk 0:00:02.8]} 52... b5 {[%clk
0:00:36.1]} 53. a5 {[%clk 0:00:02.5]} 53... c5 {[%clk 0:00:23.7]} 54. bxc5
{[%clk 0:00:03.4]} 54... Bxc5 {[%clk 0:00:21.9]} 55. a6 {[%clk 0:00:01.3]} 55...
Kc6 {[%clk 0:00:20.6]} 0-1

[Event "Late-Titled-Tuesday-Blitz-April-23-2024"]
[Site "Chess.com"]
[Date "2024.04.23"]
[Round "6"]
[White "Nimrod_Veinberg"]
[Black "2Coaches1Profile"]
[Result "1-0"]
[WhiteElo "2813"]
[BlackElo "2553"]
[TimeControl "180+1"]
[EndTime "15:08:50 PDT"]
[Termination "Nimrod_Veinberg won on time"]

1. e4 {[%clk 0:03:00.9]} 1... Nf6 {[%clk 0:02:59.4]} 2. e5 {[%clk 0:03:00.1]}
2... Nd5 {[%clk 0:03:00]} 3. c4 {[%clk 0:03:00.9]} 3... Nb6 {[%clk 0:03:00.3]}
4. d4 {[%clk 0:03:01.8]} 4... d6 {[%clk 0:03:00.5]} 5. f4 {[%clk 0:03:02]} 5...
g6 {[%clk 0:03:00.3]} 6. Nc3 {[%clk 0:03:00.6]} 6... Bg7 {[%clk 0:03:00.5]} 7.
Be3 {[%clk 0:03:00.5]} 7... Be6 {[%clk 0:03:00.8]} 8. b3 {[%clk 0:02:59.5]} 8...
O-O {[%clk 0:03:00.2]} 9. Be2 {[%clk 0:02:34.1]} 9... c6 {[%clk 0:02:59.2]} 10.
Nf3 {[%clk 0:02:28.5]} 10... Bg4 {[%clk 0:02:56.5]} 11. Rc1 {[%clk 0:02:23.4]}
11... f6 {[%clk 0:02:55.3]} 12. O-O {[%clk 0:02:15.6]} 12... dxe5 {[%clk
0:02:38.8]} 13. dxe5 {[%clk 0:02:14.6]} 13... Qxd1 {[%clk 0:02:35.3]} 14. Rfxd1
{[%clk 0:02:06.4]} 14... Bxf3 {[%clk 0:02:30.3]} 15. Bxf3 {[%clk 0:02:05.1]}
15... fxe5 {[%clk 0:02:31]} 16. fxe5 {[%clk 0:02:05.4]} 16... Bxe5 {[%clk
0:02:28.4]} 17. Ne2 {[%clk 0:01:46.8]} 17... N6d7 {[%clk 0:02:17.9]} 18. Nd4
{[%clk 0:01:45.2]} 18... Bxd4 {[%clk 0:01:21.6]} 19. Bxd4 {[%clk 0:01:44.6]}
19... Na6 {[%clk 0:01:21]} 20. Bg4 {[%clk 0:01:29.2]} 20... Nf6 {[%clk
0:01:12.2]} 21. Be6+ {[%clk 0:01:28.4]} 21... Kg7 {[%clk 0:01:12.6]} 22. Be5
{[%clk 0:01:25.2]} 22... Nc5 {[%clk 0:01:09.9]} 23. Bg4 {[%clk 0:01:22.8]} 23...
Rad8 {[%clk 0:01:08.8]} 24. Be2 {[%clk 0:01:15.8]} 24... a5 {[%clk 0:00:59.4]}
25. Bc7 {[%clk 0:01:10.1]} 25... Rxd1+ {[%clk 0:00:53.5]} 26. Rxd1 {[%clk
0:01:11]} 26... a4 {[%clk 0:00:52.9]} 27. b4 {[%clk 0:01:01]} 27... Ne6 {[%clk
0:00:53.1]} 28. Be5 {[%clk 0:00:59.9]} 28... Rd8 {[%clk 0:00:50.5]} 29. Rxd8
{[%clk 0:00:56.2]} 29... Nxd8 {[%clk 0:00:51.4]} 30. Bd1 {[%clk 0:00:56.3]}
30... a3 {[%clk 0:00:50.9]} 31. b5 {[%clk 0:00:44.5]} 31... cxb5 {[%clk
0:00:48.4]} 32. cxb5 {[%clk 0:00:44.5]} 32... Kf7 {[%clk 0:00:48.8]} 33. Bf3
{[%clk 0:00:40.6]} 33... Nd7 {[%clk 0:00:39.6]} 34. Bc7 {[%clk 0:00:40.1]} 34...
Ne6 {[%clk 0:00:39]} 35. Ba5 {[%clk 0:00:32.3]} 35... b6 {[%clk 0:00:35.6]} 36.
Bb4 {[%clk 0:00:31.5]} 36... Ne5 {[%clk 0:00:35.4]} 37. Bd5 {[%clk 0:00:28.7]}
37... Kf6 {[%clk 0:00:35.7]} 38. Bxa3 {[%clk 0:00:28.4]} 38... Nd4 {[%clk
0:00:31.5]} 39. Bb2 {[%clk 0:00:18.7]} 39... Nxb5 {[%clk 0:00:31]} 40. Kf2
{[%clk 0:00:18.4]} 40... g5 {[%clk 0:00:27.8]} 41. Ke3 {[%clk 0:00:18]} 41... e6
{[%clk 0:00:26.5]} 42. Bb3 {[%clk 0:00:17.8]} 42... Nd6 {[%clk 0:00:24.5]} 43.
a4 {[%clk 0:00:17.7]} 43... Nf5+ {[%clk 0:00:23.5]} 44. Ke4 {[%clk 0:00:17]}
44... Nd6+ {[%clk 0:00:24]} 45. Ke3 {[%clk 0:00:15.8]} 45... Nf5+ {[%clk
0:00:24.2]} 46. Kd2 {[%clk 0:00:15.8]} 46... Nh4 {[%clk 0:00:20.4]} 47. Bd4
{[%clk 0:00:14]} 47... Nxg2 {[%clk 0:00:17]} 48. Bxb6 {[%clk 0:00:14.7]} 48...
Nf3+ {[%clk 0:00:16]} 49. Ke2 {[%clk 0:00:15]} 49... Nxh2 {[%clk 0:00:16.9]} 50.
a5 {[%clk 0:00:14.7]} 50... Nf4+ {[%clk 0:00:17.6]} 51. Kd1 {[%clk 0:00:12.4]}
51... Ng4 {[%clk 0:00:05.7]} 52. a6 {[%clk 0:00:11.6]} 52... Ne5 {[%clk
0:00:01.7]} 53. a7 {[%clk 0:00:10.6]} 1-0